Workbook

Sheet Darlehensrechner
B2: RECHNER FÜR | G2: 50,000.00 € | L2: 2011-05-10
B3: STUDIENDARLEHEN
B5: Erfahrungsgemäß sollte der Gesamtbetrag der monatlichen Rückzahlungen für Studiendarlehen 8 % des ersten Jahresgehalts nicht übersteigen.
C7: Ihre aktuelle monatliche Rückzahlung (kombiniert) beträgt: | F7: =Studiendarlehen[[#Totals],[Aktuelle monatliche Rückzahlung]] -> 328.59 € | I7: Ihre geplante monatliche Rückzahlung (kombiniert) beträgt: | M7: =Studiendarlehen[[#Totals],[Geplante Zahlung]] -> 328.59 €
C8: Prozentsatz des Monatseinkommens: | F8: =Studiendarlehen[[#Totals],[Aktuelle monatliche Rückzahlung]]/GeschätztesMonatsgehalt -> 7.89% | I8: Prozentsatz des Monatseinkommens: | M8: =Studiendarlehen[[#Totals],[Geplante Zahlung]]/GeschätztesMonatsgehalt -> 7.89%
C11: ALLGEMEINE DETAILS ZUM DAHRLEHEN | G11: DATEN ZUR RÜCKZAHLUNG | J11: ZAHLUNGSDETAILS
C12: Darlehen Nr. | D12: Darlehensgeber | E12: Darlehensbetrag | F12: Jährliche Verzinsung | G12: Anfangsdatum | H12: Laufzeit (Jahre) | I12: Enddatum | J12: Aktuelle monatliche Rückzahlung | K12: Zinsen gesamt | L12: Geplante Zahlung | M12: Jährliche Zahlung
C13: 10998M88 | D13: Darlehensgeber 1 | E13: 10,000.00 € | F13: 5.00% | G13: 2011-04-01 | H13: 10 | I13: =IF(AND(Studiendarlehen[[#This Row],[Anfangsdatum]]>0,Studiendarlehen[[#This Row],[Laufzeit (Jahre)]]>0),EDATE(Studiendarlehen[[#This Row],[Anfangsdatum]],Studiendarlehen[[#This Row],[Laufzeit (Jahre)]]*12),"") -> 2021-04-01 | J13: =IF(AND(DarlehenAnfangDHeute,COUNT(Studiendarlehen[[#This Row],[Darlehensbetrag]:[Laufzeit (Jahre)]])=4,Studiendarlehen[[#This Row],[Anfangsdatum]]<TODAY()),PMT(Studiendarlehen[[#This Row],[Jährliche Verzinsung]]/12,Studiendarlehen[[#This Row],[Laufzeit (Jahre)]]*12,-Studiendarlehen[[#This Row],[Darlehensbetrag]],0,0),"") -> 106.07 € | K13: =IFERROR((Studiendarlehen[[#This Row],[Geplante Zahlung]]*(Studiendarlehen[[#This Row],[Laufzeit (Jahre)]]*12))-Studiendarlehen[[#This Row],[Darlehensbetrag]],"") -> 2,727.86 € | L13: =IF(COUNTA(Studiendarlehen[[#This Row],[Darlehensbetrag]:[Laufzeit (Jahre)]])<>4,"",PMT(Studiendarlehen[[#This Row],[Jährliche Verzinsung]]/12,Studiendarlehen[[#This Row],[Laufzeit (Jahre)]]*12,-Studiendarlehen[[#This Row],[Darlehensbetrag]],0,0)) -> 106.07 € | M13: =IFERROR(Studiendarlehen[[#This Row],[Geplante Zahlung]]*12,"") -> 1,272.79 €
C14: 20987N87 | D14: Darlehensgeber 2 | E14: 8,000.00 € | F14: 5.00% | G14: 2011-05-01 | H14: 10 | I14: =IF(AND(Studiendarlehen[[#This Row],[Anfangsdatum]]>0,Studiendarlehen[[#This Row],[Laufzeit (Jahre)]]>0),EDATE(Studiendarlehen[[#This Row],[Anfangsdatum]],Studiendarlehen[[#This Row],[Laufzeit (Jahre)]]*12),"") -> 2021-05-01 | J14: =IF(AND(DarlehenAnfangDHeute,COUNT(Studiendarlehen[[#This Row],[Darlehensbetrag]:[Laufzeit (Jahre)]])=4,Studiendarlehen[[#This Row],[Anfangsdatum]]<TODAY()),PMT(Studiendarlehen[[#This Row],[Jährliche Verzinsung]]/12,Studiendarlehen[[#This Row],[Laufzeit (Jahre)]]*12,-Studiendarlehen[[#This Row],[Darlehensbetrag]],0,0),"") -> 84.85 € | K14: =IFERROR((Studiendarlehen[[#This Row],[Geplante Zahlung]]*(Studiendarlehen[[#This Row],[Laufzeit (Jahre)]]*12))-Studiendarlehen[[#This Row],[Darlehensbetrag]],"") -> 2,182.29 € | L14: =IF(COUNTA(Studiendarlehen[[#This Row],[Darlehensbetrag]:[Laufzeit (Jahre)]])<>4,"",PMT(Studiendarlehen[[#This Row],[Jährliche Verzinsung]]/12,Studiendarlehen[[#This Row],[Laufzeit (Jahre)]]*12,-Studiendarlehen[[#This Row],[Darlehensbetrag]],0,0)) -> 84.85 € | M14: =IFERROR(Studiendarlehen[[#This Row],[Geplante Zahlung]]*12,"") -> 1,018.23 €
C15: 36785LM | D15: Darlehensgeber 3 | E15: 6,000.00 € | F15: 4.50% | G15: 2012-03-01 | H15: 10 | I15: =IF(AND(Studiendarlehen[[#This Row],[Anfangsdatum]]>0,Studiendarlehen[[#This Row],[Laufzeit (Jahre)]]>0),EDATE(Studiendarlehen[[#This Row],[Anfangsdatum]],Studiendarlehen[[#This Row],[Laufzeit (Jahre)]]*12),"") -> 2022-03-01 | J15: =IF(AND(DarlehenAnfangDHeute,COUNT(Studiendarlehen[[#This Row],[Darlehensbetrag]:[Laufzeit (Jahre)]])=4,Studiendarlehen[[#This Row],[Anfangsdatum]]<TODAY()),PMT(Studiendarlehen[[#This Row],[Jährliche Verzinsung]]/12,Studiendarlehen[[#This Row],[Laufzeit (Jahre)]]*12,-Studiendarlehen[[#This Row],[Darlehensbetrag]],0,0),"") -> 62.18 € | K15: =IFERROR((Studiendarlehen[[#This Row],[Geplante Zahlung]]*(Studiendarlehen[[#This Row],[Laufzeit (Jahre)]]*12))-Studiendarlehen[[#This Row],[Darlehensbetrag]],"") -> 1,461.97 € | L15: =IF(COUNTA(Studiendarlehen[[#This Row],[Darlehensbetrag]:[Laufzeit (Jahre)]])<>4,"",PMT(Studiendarlehen[[#This Row],[Jährliche Verzinsung]]/12,Studiendarlehen[[#This Row],[Laufzeit (Jahre)]]*12,-Studiendarlehen[[#This Row],[Darlehensbetrag]],0,0)) -> 62.18 € | M15: =IFERROR(Studiendarlehen[[#This Row],[Geplante Zahlung]]*12,"") -> 746.20 €
C16: 765R43 | D16: Darlehensgeber 4 | E16: 4,000.00 € | F16: 5.00% | G16: 2012-05-01 | H16: 5 | I16: =IF(AND(Studiendarlehen[[#This Row],[Anfangsdatum]]>0,Studiendarlehen[[#This Row],[Laufzeit (Jahre)]]>0),EDATE(Studiendarlehen[[#This Row],[Anfangsdatum]],Studiendarlehen[[#This Row],[Laufzeit (Jahre)]]*12),"") -> 2017-05-01 | J16: =IF(AND(DarlehenAnfangDHeute,COUNT(Studiendarlehen[[#This Row],[Darlehensbetrag]:[Laufzeit (Jahre)]])=4,Studiendarlehen[[#This Row],[Anfangsdatum]]<TODAY()),PMT(Studiendarlehen[[#This Row],[Jährliche Verzinsung]]/12,Studiendarlehen[[#This Row],[Laufzeit (Jahre)]]*12,-Studiendarlehen[[#This Row],[Darlehensbetrag]],0,0),"") -> 75.48 € | K16: =IFERROR((Studiendarlehen[[#This Row],[Geplante Zahlung]]*(Studiendarlehen[[#This Row],[Laufzeit (Jahre)]]*12))-Studiendarlehen[[#This Row],[Darlehensbetrag]],"") -> 529.10 € | L16: =IF(COUNTA(Studiendarlehen[[#This Row],[Darlehensbetrag]:[Laufzeit (Jahre)]])<>4,"",PMT(Studiendarlehen[[#This Row],[Jährliche Verzinsung]]/12,Studiendarlehen[[#This Row],[Laufzeit (Jahre)]]*12,-Studiendarlehen[[#This Row],[Darlehensbetrag]],0,0)) -> 75.48 € | M16: =IFERROR(Studiendarlehen[[#This Row],[Geplante Zahlung]]*12,"") -> 905.82 €
C17: Summen | E17: =SUBTOTAL(109,Studiendarlehen[Darlehensbetrag]) -> 28,000.00 € | J17: =SUBTOTAL(109,Studiendarlehen[Aktuelle monatliche Rückzahlung]) -> 328.59 € | K17: =SUBTOTAL(109,Studiendarlehen[Zinsen gesamt]) -> 6,901.21 € | L17: =SUBTOTAL(109,Studiendarlehen[Geplante Zahlung]) -> 328.59 € | M17: =SUBTOTAL(109,Studiendarlehen[Jährliche Zahlung]) -> 3,943.03 €
C18: Mittelwerte | E18: =AVERAGE(Studiendarlehen[Darlehensbetrag]) -> 7,000.00 € | F18: =AVERAGE(Studiendarlehen[Jährliche Verzinsung]) -> 4.88% | K18: =AVERAGE(Studiendarlehen[Zinsen gesamt]) -> 1,725.30 € | M18: =AVERAGE(Studiendarlehen[Jährliche Zahlung]) -> 985.76 €
K20: Gesamter Rückzahlungsbetrag konsolidiert: | M20: =Studiendarlehen[[#Totals],[Darlehensbetrag]]+Studiendarlehen[[#Totals],[Zinsen gesamt]] -> 34,901.21 €
K22: Geschätztes Monatseinkommen nach Studienabschluss: | M22: =(GeschätztesJahresgehalt/12) -> 4,166.67 €
